[Event "Excelsior March op"]
[Site "Toronto CAN"]
[Date "2024.03.17"]
[Round "5.4"]
[White "Keleberda, Tymur"]
[Black "Lu, Tony"]
[Result "1-0"]
[ECO "C00"]
[WhiteElo "2198"]
[BlackElo "1855"]
[WhiteFideId "-1"]
[BlackFideId "-1"]
[PlyCount "63"]
[GameId "2160767740231367"]
[EventDate "2024.03.15"]
[EventType "swiss"]
[EventRounds "5"]
[EventCountry "CAN"]
[TimeControl "90+30"]
[WhiteClock "0:53:03"]
[BlackClock "0:34:29"]

1. e4 {[%emt 0:00:00]} e6 {[%emt 0:00:00]} 2. d3 {[%emt 0:00:00]} d5 {[%emt 0:00:00]} 3. Nd2 {[%emt 0:00:00]} Nf6 {[%emt 0:00:00]} 4. g3 {[%emt 0:00:00]} Nc6 {[%emt 0:00:00]} 5. Bg2 {[%emt 0:00:00]} Bc5 {[%emt 0:00:00]} 6. c3 {[%emt 0:00:00]} e5 {[%emt 0:00:00]} 7. Nb3 {[%emt 0:00:00]} Bb6 {[%emt 0:00:00]} 8. exd5 {[%emt 0:00:00]} Nxd5 {[%emt 0:00:00]} 9. Ne2 {[%emt 0:00:00]} a5 {[%emt 0:00:00]} 10. O-O {[%emt 0:00:00]} Bg4 {[%emt 0:00:00]} 11. h3 {[%emt 0:00:00]} Bh5 {[%emt 0:00:00]} 12. g4 {[%emt 0:00:00]} Bg6 {[%emt 0:00:00]} 13. d4 {[%emt 0:00:00]} exd4 {[%emt 0:00:00]} 14. Nexd4 {[%emt 0:00:00]} Nxd4 {[%emt 0:00:00]} 15. Re1+ {[%emt 0:00:00]} Ne6 {[%emt 0:00:00]} 16. Bxd5 {[%emt 0:00:00]} Qf6 {[%emt 0:00:00]} 17. Be3 {[%emt 0:00:00]} Bxe3 {[%emt 0:00:00]} 18. Rxe3 {[%emt 0:00:00]} c6 {[%emt 0:00:00]} 19. Bxe6 {[%emt 0:00:00]} fxe6 {[%emt 0:00:00]} 20. Qd6 {[%emt 0:00:00]} Bf7 {[%emt 0:00:00]} 21. Rae1 {[%emt 0:00:00]} Rd8 {[%emt 0:00:00]} 22. Rxe6+ {[%emt 0:00:00]} Bxe6 {[%emt 0:00:00]} 23. Rxe6+ {[%emt 0:00:00]} Kf7 {[%emt 0:00:00]} 24. Rxf6+ {[%emt 0:00:00]} gxf6 {[%emt 0:00:00]} 25. Qc7+ {[%emt 0:00:00]} Kg6 {[%emt 0:00:00]} 26. Nd4 {[%emt 0:00:00]} h5 {[%emt 0:00:00]} 27. Ne6 {[%emt 0:00:00]} Rdg8 {[%emt 0:00:00]} 28. Nf4+ {[%emt 0:00:00]} Kh6 {[%emt 0:00:00]} 29. Nxh5 {[%emt 0:00:00]} Rg6 {[%emt 0:00:00]} 30. Ng3 {[%emt 0:00:00]} Kg5 {[%emt 0:00:00]} 31. f4+ {[%emt 0:00:00]} Kh4 {[%emt 0:00:00]} 32. Kg2 {[%emt 0:00:00]} 1-0

[Event "Kyiv op U16"]
[Site "Kyiv UKR"]
[Date "2021.07.21"]
[Round "9.3"]
[White "Bazakutsa, Svyatoslav"]
[Black "Keleberda, Tymur"]
[Result "1-0"]
[ECO "B38"]
[WhiteElo "2144"]
[BlackElo "2168"]
[WhiteFideId "-1"]
[BlackFideId "-1"]
[PlyCount "56"]
[GameId "2129404733727827"]
[EventDate "2021.07.20"]
[EventType "swiss"]
[EventRounds "9"]
[EventCountry "UKR"]
[SourceTitle "10 Days #658"]
[Source "ChessMix"]
[SourceDate "2021.08.01"]
[SourceVersion "1"]
[SourceVersionDate "2021.08.01"]
[SourceQuality "1"]
[TimeControl "900+5"]

1. c4 {[%emt 0:00:01]} c5 {[%emt 0:00:01]} 2. Nf3 {[%emt 0:00:01]} g6 {[%emt 0:00:05]} 3. d4 {[%emt 0:00:02]} cxd4 {[%emt 0:00:03]} 4. Nxd4 {[%emt 0:00:01]} Nf6 {[%emt 0:00:02]} 5. Nc3 {[%emt 0:00:02]} Bg7 {[%emt 0:00:01]} 6. e4 {[%emt 0:00:01]} d6 {[%emt 0:00:05]} 7. h3 {[%emt 0:00:01]} Nc6 {[%emt 0:00:18]} 8. Be3 {[%emt 0:00:03]} O-O {[%emt 0:00:45]} 9. Be2 {[%emt 0:00:01]} e5 {[%emt 0:00:39]} 10. Ndb5 {[%emt 0:02:09]} Ne8 {[%emt 0:00:40]} 11. Nd5 {[%emt 0:01:28]} f5 {[%emt 0:00:39]} 12. exf5 {[%emt 0:00:38]} gxf5 {[%emt 0:00:03]} 13. g4 {[%emt 0:02:29]} f4 {[%emt 0:00:52]} 14. Bd2 {[%emt 0:00:01]} a6 {[%emt 0:00:40]} 15. Nbc3 {[%emt 0:00:03]} Nd4 {[%emt 0:00:08]} 16. f3 {[%emt 0:00:12]} Qh4+ {[%emt 0:02:09]} 17. Kf1 {[%emt 0:00:02]} Bxg4 {[%emt 0:00:15]} 18. fxg4 {[%emt 0:03:22]} f3 {[%emt 0:00:01]} 19. Bd3 {[%emt 0:00:04]} Qg3 {[%emt 0:00:01]} 20. Ne3 {[%emt 0:00:06]} Bh6 {[%emt 0:00:01]} 21. g5 {[%emt 0:00:53]} Bxg5 {[%emt 0:00:17]} 22. Ne4 {[%emt 0:00:09]} Nf5 {[%emt 0:01:50]} 23. Nxg3 {[%emt 0:00:46]} Nxg3+ {[%emt 0:00:04]} 24. Kf2 {[%emt 0:00:02]} Nxh1+ {[%emt 0:00:02]} 25. Qxh1 {[%emt 0:00:02]} Bh4+ {[%emt 0:00:01]} 26. Kf1 {[%emt 0:00:04]} Nf6 {[%emt 0:00:05]} 27. Nf5 {[%emt 0:00:19]} Nh5 {[%emt 0:00:35]} 28. Qxf3 {[%emt 0:00:32]} Kh8 1-0